Workbook

Sheet Примерные оздоровительные
A1: Согласовано: | G1: Утверждаю:
A2: Директор МБОУ ------------------------------------- | G2: Председатель СПОСПК "Эдем"
A3: Алексеевского муниципального района
A4: __________________ . | G4: ___________Турнина А. А.
A6: Примерное двухнедельное меню для организации сбалансированного питания детей в оздоровительных
A7: лагерях с дневным прибыванием детей без сна в период каникул
A8: Возрастная категория: 12 лет и старше
A11: № рецептур | B11: Приём пищи, наименование блюда | C11: Масса порций, в гр. | D11: Пищевая ценность | G11: Энергетическая ценность
D12: Белки | E12: Жиры | F12: Углеводы
B13: День 1 - завтрак
A14: №175 | B14: Каша "дружба" молочная со сливочным маслом | C14: 250/8/12 | D14: 9.29 | E14: 13.12 | F14: 41.21 | G14: 309.77
A15: №401 | B15: Оладьи со сгущенкой | C15: 80/20 | D15: 7.48 | E15: 7.49 | F15: 41.85 | G15: 264.81
B16: Хлеб пшеничный | C16: 70 | D16: 5.32 | E16: 0.56 | F16: 34.44 | G16: 165.66
A17: №376 | B17: Чай с сахаром | C17: 200/15 | D17: 0.021 | E17: 0.005 | F17: 14.975 | G17: 60
B18: Итого за завтрак: | D18: =D17+D16+D15+D14 -> 22.111 | E18: =E17+E16+E15+E14 -> 21.175 | F18: =F16+F15+F14-6 -> 111.5 | G18: 800.24
B19: День 1 - 2 завтрак
A20: №338 | B20: Фрукт | C20: 200 | D20: 0.52 | E20: 0.34 | F20: 14.7 | G20: 104
A21: №389 | B21: Сок | C21: 200 | D21: 0 | E21: 0 | F21: 38 | G21: 76.8
B22: Итого за 2-ой завтрак | D22: =D20+D21 -> 0.52 | E22: =E20+E21 -> 0.34 | F22: 52.7 | G22: 180.8
B23: День 1 - обед
A24: № 23 | B24: Помидоры свежие с маслом | C24: 100 | D24: 1.12 | E24: 5.25 | F24: 5.25 | G24: 71
A25: №112 | B25: Суп картофельный с макаронными изделиями на мкб со сметаной | C25: 250/15/10 | D25: 8.36 | E25: 6.33 | F25: 27.44 | G25: 200
A26: № 259 | B26: Жаркое по - домашнему из говядины | C26: 250 | D26: 14.12 | E26: 16.9 | F26: 34.89 | G26: 376.25
B27: Хлеб ржано пшеничный | C27: 70 | D27: 3.5 | E27: 0.7 | F27: 31.5 | G27: 154
A28: №349 | B28: Компот из сухофруктов | C28: 200 | D28: 0.54 | E28: 0 | F28: 17.58 | G28: 70.53
B29: Итого за обед: | D29: =D28+D27+D26+D25+D24+10 -> 37.64 | E29: =E28+E27+E26+E25+E24+11 -> 40.18 | F29: =F28+F27+F26+F25+F24 -> 116.66 | G29: =G28+G27+G26+G25+G24 -> 871.78
B30: Итого за день: | D30: =D29+D22+D18 -> 60.271 | E30: =E29+E22+E18 -> 61.695 | F30: 280.86 | G30: 1852.82
B32: День 2 - завтрак
A33: №15 | B33: Сыр | C33: 30 | D33: 7.8 | E33: 7.94 | F33: 1.05 | G33: 109.5
A34: №312 | B34: Пюре картофельное | C34: 200 | D34: 4.11 | E34: 6.2 | F34: 29.37 | G34: 194.66
A35: №301 | B35: Кнели куриные | C35: 100 | D35: 15.14 | E35: 10.6 | F35: 6.95 | G35: 228
B36: Хлеб пшеничный | C36: 70 | D36: 5.32 | E36: 0.56 | F36: 34.44 | G36: 165.66
A37: №377 | B37: Чай с лимоном | C37: 200/15/7 | D37: 0.45 | E37: 0.05 | F37: 15.95 | G37: 62.3
B38: Итого за завтрак: | D38: =D37+D36+D34+D35+D33 -> 32.82 | E38: =E37+E36+E34+E35+E33 -> 25.35 | F38: 87.76 | G38: 760.12
B39: День 2 - 2-ой завтрак
A40: №389 | B40: Сок | C40: 200 | D40: 0 | E40: 0 | F40: 38 | G40: 76.8
B41: Кондитерское изделие | C41: 50 | D41: 1.28 | E41: 1.12 | F41: 26.4 | G41: 138.6
B42: Итого за 2-ой завтрак | D42: =D40+D41 -> 1.28 | E42: =E40+E41 -> 1.12 | F42: =F40+F41 -> 64.4 | G42: =G40+G41 -> 215.4
B43: День 2 - обед
A44: №45 | B44: Салат из белокочанной капусты | C44: 100 | D44: 1.55 | E44: 5.75 | F44: 9.4 | G44: 111
A45: №96 | B45: Рассольник Ленинградский на мкб со сметаной | C45: 250/15/10 | D45: 7.02 | E45: 8.2 | F45: 18.95 | G45: 191.3
A46: №304 | B46: Рис отварной | C46: 200 | D46: 4.93 | E46: 9.76 | F46: 49.64 | G46: 293.3
A47: №229 | B47: Рыба припущенная с овощами в сметанном соусе | C47: 100/50 | D47: 9.4 | E47: 7.04 | F47: 12.76 | G47: 174
B48: Хлеб ржано пшеничный | C48: 70 | D48: 3.5 | E48: 0.7 | F48: 31.5 | G48: 154
A49: №359 | B49: Кисель ягодный | C49: 200 | D49: 0 | E49: 0 | F49: 35.94 | G49: 118
B50: Итого за обед: | D50: =D49+D48+D47+D46+D45+D44 -> 26.4 | E50: =E49+E48+E47+E46+E45+E44+5 -> 36.45 | F50: =F48+F47+F46+F45+F44 -> 122.25 | G50: =G48+G47+G46+G45+G44 -> 923.6
B51: Итого за день: | D51: =D50+D42+D38 -> 60.5 | E51: =E50+E42+E38 -> 62.92 | F51: 274.41 | G51: 1899.12
B53: День 3 - завтрак
A54: №223 | B54: Запеканка из творога со сгущенкой | C54: 80/20 | D54: 12.71 | E54: 8.69 | F54: 11.64 | G54: 172.7
A55: №181 | B55: Каша манная молочная со сливочным маслом | C55: 250/8/12 | D55: 9.15 | E55: 13.31 | F55: 29.2 | G55: 265.89
B56: Хлеб пшеничный | C56: 70 | D56: 5.32 | E56: 0.56 | F56: 34.44 | G56: 165.66
A57: №382 | B57: Какао с молоком | C57: 200 | D57: 3.97 | E57: 2.1 | F57: 25.168 | G57: 145
B58: Итого за завтрак: | D58: =D57+D56+D55+D54 -> 31.15 | E58: =E57+E56+E55+E54 -> 24.66 | F58: 100.448 | G58: 749.25
B59: День 3 - 2-ой завтрак
A60: №389 | B60: Сок | C60: 200 | D60: 0 | E60: 0 | F60: 38 | G60: 76.8
B61: Кондитерское изделие | C61: 50 | D61: 1.28 | E61: 1.12 | F61: 26.4 | G61: 138.6
B62: Итого за 2-ой завтрак | D62: =D60+D61 -> 1.28 | E62: =E60+E61 -> 1.12 | F62: 64.4 | G62: 215.4
B63: День 3 - обед
A64: №20 | B64: Салат из свежих огурцов | C64: 100 | D64: 0.665 | E64: 6.08 | F64: 1.8 | G64: 65
A65: №101 | B65: Суп картофельный с крупой(рисовый) на мкб | C65: 250/15/10 | D65: 7.72 | E65: 8.5 | F65: 27.62 | G65: 208.25
A66: №306 | B66: Пюре гороховое | C66: 200 | D66: 6.82 | E66: 7.75 | F66: 37.53 | G66: 273.33
A67: №268 | B67: Котлета из говядины | C67: 100 | D67: 10.16 | E67: 13.92 | F67: 13.52 | G67: 236
B68: Хлеб ржано пшеничный | C68: 70 | D68: 3.5 | E68: 0.7 | F68: 31.5 | G68: 154
A69: №342 | B69: Компот из свежих фруктов | C69: 200 | D69: 0.17 | E69: 0.17 | F69: 19.18 | G69: 76.8
B70: Итого за обед: | D70: =D69+D68+D67+D66+D65+D64 -> 29.035 | E70: =E69+E68+E67+E66+E65+E64 -> 37.12 | F70: =+F68+F67+F66+F65+F64 -> 111.97 | G70: 1013.38
B71: Итого за день: | D71: =D70+D62+D58 -> 61.465 | E71: =E70+E62+E58 -> 62.9 | F71: 276.818 | G71: 1978.03
B73: День 4 - завтрак
A74: №401 | B74: Оладьи с повидлом | C74: 100/20 | D74: 7.87 | E74: 6.55 | F74: 32.38 | G74: 250.6
A75: №203 | B75: Макароны отварные со сливочным маслом | C75: 200 | D75: 7.6 | E75: 9.94 | F75: 45.77 | G75: 272
A76: №243 | B76: Сосиска отварная с соусом | C76: 100/30 | D76: 7.7 | E76: 10.92 | F76: 2.75 | G76: 129.6
B77: Хлеб пшеничный | C77: 70 | D77: 5.32 | E77: 0.56 | F77: 34.44 | G77: 165.66
A78: №376 | B78: Чай с сахаром | C78: 200/15 | D78: 0.021 | E78: 0.005 | F78: 14.975 | G78: 60
B79: Итого за завтрак: | D79: =D78+D77+D76+D75+D74 -> 28.511 | E79: =E78+E77+E76+E75+E74 -> 27.975 | F79: =F77+F76+F75+F74 -> 115.34 | G79: 877.86
B80: День 4 - 2-ой завтрак
A81: №389 | B81: Сок | C81: 200 | D81: 0 | E81: 0 | F81: 38 | G81: 76.8
A82: №338 | B82: Фрукт | C82: 200 | D82: 0.52 | E82: 0.34 | F82: 14.7 | G82: 104
B83: Итого за 2-ой завтрак | D83: =D81+D82 -> 0.52 | E83: =E81+E82 -> 0.34 | F83: 52.7 | G83: 180.8
B84: День 4 - обед
A85: № 23 | B85: Помидоры свежие с маслом | C85: 100 | D85: 1.12 | E85: 5.25 | F85: 5.25 | G85: 71
A86: №82 | B86: Борщ с капустой и картофелем на мкб со сметаной | C86: 250/15/10 | D86: 7.5 | E86: 7.99 | F86: 23.09 | G86: 184
A87: №244 | B87: Плов из говядины | C87: 250 | D87: 15.9 | E87: 15.4 | F87: 27.92 | G87: 307.5
B88: Хлеб ржано пшеничный | C88: 70 | D88: 3.5 | E88: 0.7 | F88: 31.5 | G88: 154
A89: №349 | B89: Компот из сухофруктов | C89: 200 | D89: 0.54 | E89: 0 | F89: 17.58 | G89: 70.53
B90: Итого за обед: | D90: =D89+D88+D87+D86+D85+D88 -> 32.06 | E90: =E89+E88+E87+E86+E85+E85 -> 34.59 | F90: =F89+F88+F87+F86+F85 -> 105.34 | G90: 787.03
B91: Итого за день: | D91: =D90+D83+D79 -> 61.091 | E91: =E90+E83+E79 -> 62.905 | F91: 273.38 | G91: 1845.69
B93: День 5 - завтрак
A94: №173 | B94: Каша геркулесовая молочная со сливочным маслом | C94: 250/8/12 | D94: 10.6 | E94: 16.61 | F94: 25.22 | G94: 278.46
A95: №209 | B95: Яйцо отварное | C95: 40 | D95: 6.6 | E95: 6.1 | F95: 0.3 | G95: 80
B96: Хлеб пшеничный | C96: 70 | D96: 5.32 | E96: 0.56 | F96: 34.44 | G96: 165.66
A97: №377 | B97: Чай с лимоном | C97: 200/15/7 | D97: 0.45 | E97: 0.05 | F97: 15.95 | G97: 62.3
A98: №338 | B98: Фрукт | C98: 200 | D98: 0.52 | E98: 0.34 | F98: 14.7 | G98: 104
B99: Итого за завтрак: | D99: =D97+D96+D95+D94+D98 -> 23.49 | E99: =E97+E96+E95+E94+E98 -> 23.66 | F99: 90.61 | G99: 690.42
B100: День 5 - 2 ой завтрак
A101: №389 | B101: Сок | C101: 200 | D101: 0 | E101: 0 | F101: 38 | G101: 76.8
B102: Кондитерское изделие | C102: 50 | D102: 1.28 | E102: 1.12 | F102: 26.4 | G102: 138.6
B103: Итого за 2-ой завтрак | D103: =D102+D101 -> 1.28 | E103: =E102+E101 -> 1.12 | F103: 64.4 | G103: 215.4
B104: День 5 - обед
A105: №49 | B105: Салат "Витаминный" | C105: 100 | D105: 1.17 | E105: 5.1 | F105: 11.09 | G105: 106
A106: №88 | B106: Щи из свежей капусты с картофелем на мкб со сметаной | C106: 250/15/10 | D106: 7.5 | E106: 8.5 | F106: 18.2 | G106: 155.7
A107: №312 | B107: Пюре картофельное | C107: 200 | D107: 4.11 | E107: 6.2 | F107: 29.37 | G107: 194.66
A108: №279 | B108: Тефтели мясные | C108: 100 | D108: 9.99 | E108: 13.4 | F108: 24.4 | G108: 204
B109: Хлеб ржано пшеничный | C109: 70 | D109: 3.5 | E109: 0.7 | F109: 31.5 | G109: 154
A110: №359 | B110: Кисель ягодный | C110: 200 | D110: 0 | E110: 0 | F110: 35.94 | G110: 118
B111: Итого за обед: | D111: =D110+D109+D108+D107+D106+D105+D108 -> 36.26 | E111: =E110+E109+E108+E107+E106+E105+E105 -> 39 | F111: =F110+F109+F107+F106+F105 -> 126.1 | G111: =G110+G109+G108+G107+G106+G105 -> 932.36
B112: Итого за день: | D112: =D111+D103+D99 -> 61.03 | E112: =E111+E103+E99 -> 63.78 | F112: 281.11 | G112: 1838.18
B114: День 6 - завтрак
A115: №15 | B115: Сыр | C115: 30 | D115: 7.8 | E115: 7.94 | F115: 1.05 | G115: 109.5
A116: №321, 312 | B116: Гарнир сложный | C116: 200 | D116: 6.67 | E116: 10.4 | F116: 31.23 | G116: 216.33
A117: №294 | B117: Котлета куриная | C117: 100 | D117: 10.5 | E117: 7.11 | F117: 9.78 | G117: 202
B118: Хлеб пшеничный | C118: 70 | D118: 5.32 | E118: 0.56 | F118: 34.44 | G118: 165.66
A119: №382 | B119: Какао с молоком | C119: 200 | D119: 3.97 | E119: 2.1 | F119: 25.168 | G119: 145
B120: Итого за завтрак: | D120: =D119+D118+D117+D116+D115 -> 34.26 | E120: =E119+E118+E117+E116+E115 -> 28.11 | F120: 101.668 | G120: 838.49
B121: День 6 - 2-ой завтрак
A122: №338 | B122: Фрукт | C122: 200 | D122: 0.52 | E122: 0.34 | F122: 14.7 | G122: 104
A123: №389 | B123: Сок | C123: 200 | D123: 0 | E123: 0 | F123: 38 | G123: 76.8
B124: Итого за 2-ой завтрак | D124: =D123+D122 -> 0.52 | E124: =E123+E122 -> 0.34 | F124: 52.7 | G124: 180.8
B125: День 6 - обед
A126: №20 | B126: Салат из свежих огурцов | C126: 100 | D126: 0.665 | E126: 6.08 | F126: 1.8 | G126: 65
A127: №108 | B127: Суп картофельный с клецками на мкб со сметаной | C127: 250/15/10 | D127: 6.59 | E127: 7.62 | F127: 24.45 | G127: 232
A128: №302 | B128: Каша гречневая рассыпчатая | C128: 200 | D128: 9.14 | E128: 10.1 | F128: 44 | G128: 226.66
A129: №234 | B129: Биточки рыбные из минтая с соусом | C129: 100/30 | D129: 9.27 | E129: 8.29 | F129: 19.88 | G129: 198
B130: Хлеб ржано пшеничный | C130: 70 | D130: 3.5 | E130: 0.7 | F130: 31.5 | G130: 154
A131: №342 | B131: Компот из свежих фруктов | C131: 200 | D131: 0.17 | E131: 0.17 | F131: 19.18 | G131: 76.8
B132: Итого за обед: | D132: =D131+D130+D129+D128+D127+D126 -> 29.335 | E132: =E131+E130+E129+E128+E127+E126 -> 32.96 | F132: =F130+F129+F128+F127+F126 -> 121.63 | G132: 952.46
B133: Итого за день: | D133: =D132+D124+D120 -> 64.115 | E133: =E132+E124+E120 -> 61.41 | F133: 275.998 | G133: 1971.75
B135: День 7- завтрак
A136: №219 | B136: Сырники из творога | C136: 100/20 | D136: 15.88 | E136: 10.86 | F136: 17.43 | G136: 247
A137: №173 | B137: Каша ячневая молочная со сливочным маслом | C137: 250/8/12 | D137: 10.73 | E137: 13.83 | F137: 38.12 | G137: 310.34
A138: №376 | B138: Чай с сахаром | C138: 200/15 | D138: 0.021 | E138: 0.005 | F138: 14.975 | G138: 60
B139: Хлеб пшеничный | C139: 70 | D139: 5.32 | E139: 0.56 | F139: 34.44 | G139: 165.66
A140: №338 | B140: Фрукт | C140: 200 | D140: 0.52 | E140: 0.34 | F140: 14.7 | G140: 104
B141: Итого за завтрак: | D141: =D139+D138+D137+D136+D140 -> 32.471 | E141: =E139+E138+E137+E136+E140 -> 25.595 | F141: 119.665 | G141: 887
B142: День 7 - 2-ой завтрак
A143: №389 | B143: Сок | C143: 200 | D143: 0 | E143: 0 | F143: 38 | G143: 76.8
B144: Кондитерское изделие | C144: 50 | D144: 1.28 | E144: 1.12 | F144: 26.4 | G144: 138.6
B145: Итого за 2-ой завтрак | D145: =D143+D144 -> 1.28 | E145: =E143+E144 -> 1.12 | F145: 64.4 | G145: 215.4
B146: День 7 - обед
A147: № 23 | B147: Помидоры свежие с маслом | C147: 100 | D147: 1.12 | E147: 5.25 | F147: 5.25 | G147: 71
A148: №102 | B148: Суп картофельный с бобовыми (гороховый) на мкб | C148: 250/15 | D148: 6.49 | E148: 6.24 | F148: 15.87 | G148: 153.6
A149: №287 | B149: Голубцы ленивые | C149: 250 | D149: 19.7 | E149: 16.71 | F149: 19.8 | G149: 308.56
B150: Хлеб ржано пшеничный | C150: 70 | D150: 3.5 | E150: 0.7 | F150: 31.5 | G150: 154
A151: №349 | B151: Компот из сухофруктов | C151: 200 | D151: 0.54 | E151: 0 | F151: 17.58 | G151: 70.53
B152: Итого за обед: | D152: =D151+D150+D149+D148+D147 -> 31.35 | E152: =E151+E150+E149+E148+E147+E147 -> 34.15 | F152: =F151+F150+F149+F148+F147+F147 -> 95.25 | G152: 828.69
B153: Итого за день: | D153: =D152+D145+D141 -> 65.101 | E153: =E152+E145+E141 -> 60.865 | F153: 279.315 | G153: 1931.09
B155: День 8 - завтрак
A156: №20 | B156: Салат из свежих огурцов | C156: 100 | D156: 0.665 | E156: 6.08 | F156: 1.8 | G156: 65
A157: №203 | B157: Макароны отварные со сливочным маслом | C157: 200 | D157: 7.6 | E157: 9.94 | F157: 45.77 | G157: 272
A158: №243 | B158: Сосиска отварная с соусом | C158: 100/30 | D158: 7.7 | E158: 10.92 | F158: 2.75 | G158: 129.6
B159: Хлеб пшеничный | C159: 70 | D159: 5.32 | E159: 0.56 | F159: 34.44 | G159: 165.66
A160: №377 | B160: Чай с лимоном | C160: 200/15/7 | D160: 0.45 | E160: 0.05 | F160: 15.95 | G160: 62.3
B161: Итого за завтрак: | D161: =D160+D159+D158+D157+D156 -> 21.735 | E161: =E160+E159+E158+E157+E156 -> 27.55 | F161: 100.71 | G161: 694.56
B162: День 8 - 2ой завтрак
A163: №338 | B163: Фрукт | C163: 200 | D163: 0.52 | E163: 0.34 | F163: 14.7 | G163: 104
A164: №389 | B164: Сок | C164: 200 | D164: 0 | E164: 0 | F164: 38 | G164: 76.8
B165: Итого за 2-ой завтрак | D165: =D163+D164 -> 0.52 | E165: =E163+E164 -> 0.34 | F165: 52.7 | G165: 180.8
B166: День 8 - обед
A167: №45 | B167: Салат из белокочанной капусты | C167: 100 | D167: 1.55 | E167: 5.75 | F167: 9.4 | G167: 111
A168: №96 | B168: Рассольник Ленинградский на мкб со сметаной | C168: 250/15/10 | D168: 7.02 | E168: 8.2 | F168: 18.95 | G168: 191.3
A169: №142 | B169: Картофель тушеный с овощами | C169: 200 | D169: 4.53 | E169: 6.12 | F169: 26.18 | G169: 183.42
A170: №268 | B170: Котлета из говядины | C170: 100 | D170: 10.16 | E170: 13.92 | F170: 13.52 | G170: 236
B171: Хлеб ржано пшеничный | C171: 70 | D171: 3.5 | E171: 0.7 | F171: 31.5 | G171: 154
A172: №359 | B172: Кисель ягодный | C172: 200 | D172: 0 | E172: 0 | F172: 35.94 | G172: 118
B173: Итого за обед: | D173: =D172+D171+D170+D169+D168+D167+D170+D167 -> 38.47 | E173: =E172+E171+E170+E169+E168+E167 -> 34.69 | F173: =F172+F171+F170+F169+F168 -> 126.09 | G173: 993.72
B174: Итого за день: | D174: =D173+D165+D161 -> 60.725 | E174: =E173+E165+E161 -> 62.58 | F174: 279.5 | G174: 1869.08
B176: День 9 - завтрак
A177: №209 | B177: Яйцо отварное | C177: 40 | D177: 6.6 | E177: 6.1 | F177: 0.3 | G177: 80
A178: №199 | B178: Каша молочная пшенная со сливочным маслом | C178: 250/8/12 | D178: 11.05 | E178: 14.65 | F178: 34.96 | G178: 298.15
B179: Хлеб пшеничный | C179: 70 | D179: 5.32 | E179: 0.56 | F179: 34.44 | G179: 165.66
A180: №382 | B180: Какао с молоком | C180: 200 | D180: 3.97 | E180: 2.1 | F180: 25.168 | G180: 145
B181: Итого за завтрак: | D181: =D180+D179+D178+D177 -> 26.94 | E181: =E180+E179+E178+E177 -> 23.41 | F181: 94.868 | G181: 688.81
B182: День 9 - 2-ой завтрак
B183: Кондитерское изделие | C183: 50 | D183: 1.28 | E183: 1.12 | F183: 26.4 | G183: 138.6
A184: №389 | B184: Сок | C184: 200 | D184: 0 | E184: 0 | F184: 38 | G184: 76.8
B185: Итого за 2-ой завтрак | D185: =D183+D184 -> 1.28 | E185: =E183+E184 -> 1.12 | F185: 64.4 | G185: 215.4
B186: День 9 - обед
A187: №49 | B187: Салат "Витаминный" | C187: 100 | D187: 1.17 | E187: 5.1 | F187: 11.09 | G187: 106
A188: №101 | B188: Суп картофельный с крупой (гречневый) на мкб | C188: 250/15 | D188: 7.38 | E188: 7.5 | F188: 23.5 | G188: 188
A189: №263 | B189: Рагу овощное с говядиной | C189: 250 | D189: 18.92 | E189: 18.62 | F189: 42.87 | G189: 430
B190: Хлеб ржано пшеничный | C190: 70 | D190: 3.5 | E190: 0.7 | F190: 31.5 | G190: 154
A191: №342 | B191: Компот из свежих фруктов | C191: 200 | D191: 0.17 | E191: 0.17 | F191: 19.18 | G191: 76.8
B192: Итого за обед: | D192: =D191+D190+D189+D188+D187+D187 -> 32.31 | E192: =E191+E190+E189+E188+E187+E187 -> 37.19 | F192: 108.14 | G192: 1060.8
B193: Итого за день: | D193: =D192+D185+D181 -> 60.53 | E193: =E192+E185+E181 -> 61.72 | F193: 267.408 | G193: 1965.01
B195: День 10 - завтрак
A196: №15 | B196: Сыр | C196: 30 | D196: 7.8 | E196: 7.94 | F196: 1.05 | G196: 109.5
A197: №312 | B197: Пюре картофельное | C197: 200 | D197: 4.11 | E197: 6.2 | F197: 29.37 | G197: 194.66
A198: №301 | B198: Кнели куриные | C198: 100 | D198: 15.14 | E198: 10.6 | F198: 6.95 | G198: 228
A199: №376 | B199: Чай с сахаром | C199: 200/15 | D199: 0.021 | E199: 0.005 | F199: 14.975 | G199: 60
B200: Хлеб пшеничный | C200: 70 | D200: 5.32 | E200: 0.56 | F200: 34.44 | G200: 165.66
B201: Итого за завтрак: | D201: =D200+D199+D198+D197+D196 -> 32.391 | E201: =E200+E199+E198+E197+E196 -> 25.305 | F201: 86.785 | G201: 757.82
B202: День 10 - 2ой завтрак
A203: №389 | B203: Сок | C203: 200 | D203: 0 | E203: 0 | F203: 38 | G203: 76.8
B204: Кондитерское изделие | C204: 50 | D204: 1.28 | E204: 1.12 | F204: 26.4 | G204: 138.6
B205: Итого за 2-ой завтрак | D205: =D204+D203 -> 1.28 | E205: =E204+E203 -> 1.12 | F205: 64.4 | G205: 215.4
B206: День 10 - обед
A207: № 23 | B207: Помидоры свежие с маслом | C207: 100 | D207: 1.12 | E207: 5.25 | F207: 5.25 | G207: 71
A208: №82 | B208: Борщ с капустой и картофелем на мкб со сметаной | C208: 250/15/10 | D208: 7.5 | E208: 7.99 | F208: 23.09 | G208: 184
A209: №304 | B209: Рис отварной | C209: 200 | D209: 4.93 | E209: 9.76 | F209: 49.64 | G209: 293.3
A210: №229 | B210: Рыба припущенная с овощами в сметанном соусе | C210: 100/50 | D210: 9.4 | E210: 7.04 | F210: 12.76 | G210: 174
B211: Хлеб ржано пшеничный | C211: 70 | D211: 3.5 | E211: 0.7 | F211: 31.5 | G211: 154
A212: №349 | B212: Компот из сухофруктов | C212: 200 | D212: 0.54 | E212: 0 | F212: 17.58 | G212: 70.53
... 81 more rows

Sheet Примерное трудовые
A1: Согласовано: | G1: Утверждаю:
A2: Директор МБОУ "Мокрокурналинская СОШ" | G2: Председатель СПОСПК "Эдем"
A3: Алексеевского муниципального района
A4: __________________ Халитов Р. И. | G4: ___________Турнина А. А.
A6: Примерное двухнедельное меню для организации сбалансированного питания детей в лагерях
A7: труда и отдыха с дневным прибыванием детей без сна в период каникул
A8: Возрастная категория: 12 лет и старше
A11: № рецептур | B11: Приём пищи, наименование блюда | C11: Масса порций, в гр. | D11: Пищевая ценность | G11: Энергетическая ценность
D12: Белки | E12: Жиры | F12: Углеводы
B13: День 1 - завтрак
A14: №175 | B14: Каша "дружба" молочная со сливочным маслом | C14: 250/8/12 | D14: 9.29 | E14: 13.12 | F14: 41.21 | G14: 309.77
A15: №401 | B15: Оладьи со сгущенкой | C15: 80/20 | D15: 7.48 | E15: 7.49 | F15: 41.85 | G15: 264.81
B16: Хлеб пшеничный | C16: 70 | D16: 5.32 | E16: 0.56 | F16: 34.44 | G16: 165.66
A17: №376 | B17: Чай с сахаром | C17: 200/15 | D17: 0.021 | E17: 0.005 | F17: 14.975 | G17: 60
B18: Итого за завтрак: | D18: =D17+D16+D15+D14 -> 22.111 | E18: =E17+E16+E15+E14 -> 21.175 | F18: =F16+F15+F14-6 -> 111.5 | G18: 800.24
B19: День 1 - 2 завтрак
A20: №338 | B20: Фрукт | C20: 200 | D20: 0.52 | E20: 0.34 | F20: 14.7 | G20: 104
A21: №389 | B21: Сок | C21: 200 | D21: 0 | E21: 0 | F21: 38 | G21: 76.8
B22: Итого за 2-ой завтрак | D22: =D20+D21 -> 0.52 | E22: =E20+E21 -> 0.34 | F22: 52.7 | G22: 180.8
B23: День 1 - обед
A24: № 23 | B24: Помидоры свежие с маслом | C24: 100 | D24: 1.12 | E24: 5.25 | F24: 5.25 | G24: 71
A25: №112 | B25: Суп картофельный с макаронными изделиями на мкб со сметаной | C25: 250/15/10 | D25: 8.36 | E25: 6.33 | F25: 27.44 | G25: 200
A26: № 259 | B26: Жаркое по - домашнему из говядины | C26: 250 | D26: 14.12 | E26: 16.9 | F26: 34.89 | G26: 376.25
B27: Хлеб ржано пшеничный | C27: 70 | D27: 3.5 | E27: 0.7 | F27: 31.5 | G27: 154
A28: №349 | B28: Компот из сухофруктов | C28: 200 | D28: 0.54 | E28: 0 | F28: 17.58 | G28: 70.53
B29: Итого за обед: | D29: =D28+D27+D26+D25+D24+10 -> 37.64 | E29: =E28+E27+E26+E25+E24+11 -> 40.18 | F29: =F28+F27+F26+F25+F24 -> 116.66 | G29: =G28+G27+G26+G25+G24 -> 871.78
B30: Итого за день: | D30: =D29+D22+D18 -> 60.271 | E30: =E29+E22+E18 -> 61.695 | F30: 280.86 | G30: 1852.82
B32: День 2 - завтрак
A33: №15 | B33: Сыр | C33: 30 | D33: 7.8 | E33: 7.94 | F33: 1.05 | G33: 109.5
A34: №312 | B34: Пюре картофельное | C34: 200 | D34: 4.11 | E34: 6.2 | F34: 29.37 | G34: 194.66
A35: №301 | B35: Кнели куриные | C35: 100 | D35: 15.14 | E35: 10.6 | F35: 6.95 | G35: 228
B36: Хлеб пшеничный | C36: 70 | D36: 5.32 | E36: 0.56 | F36: 34.44 | G36: 165.66
A37: №377 | B37: Чай с лимоном | C37: 200/15/7 | D37: 0.45 | E37: 0.05 | F37: 15.95 | G37: 62.3
B38: Итого за завтрак: | D38: =D37+D36+D34+D35+D33 -> 32.82 | E38: =E37+E36+E34+E35+E33 -> 25.35 | F38: 87.76 | G38: 760.12
B39: День 2 - 2-ой завтрак
A40: №389 | B40: Сок | C40: 200 | D40: 0 | E40: 0 | F40: 38 | G40: 76.8
B41: Кондитерское изделие | C41: 50 | D41: 1.28 | E41: 1.12 | F41: 26.4 | G41: 138.6
B42: Итого за 2-ой завтрак | D42: =D40+D41 -> 1.28 | E42: =E40+E41 -> 1.12 | F42: =F40+F41 -> 64.4 | G42: =G40+G41 -> 215.4
B43: День 2 - обед
A44: №45 | B44: Салат из белокочанной капусты | C44: 100 | D44: 1.55 | E44: 5.75 | F44: 9.4 | G44: 111
A45: №96 | B45: Рассольник Ленинградский на мкб со сметаной | C45: 250/15/10 | D45: 7.02 | E45: 8.2 | F45: 18.95 | G45: 191.3
A46: №304 | B46: Рис отварной | C46: 200 | D46: 4.93 | E46: 9.76 | F46: 49.64 | G46: 293.3
A47: №229 | B47: Рыба припущенная с овощами в сметанном соусе | C47: 100/50 | D47: 9.4 | E47: 7.04 | F47: 12.76 | G47: 174
B48: Хлеб ржано пшеничный | C48: 70 | D48: 3.5 | E48: 0.7 | F48: 31.5 | G48: 154
A49: №359 | B49: Кисель ягодный | C49: 200 | D49: 0 | E49: 0 | F49: 35.94 | G49: 118
B50: Итого за обед: | D50: =D49+D48+D47+D46+D45+D44 -> 26.4 | E50: =E49+E48+E47+E46+E45+E44+5 -> 36.45 | F50: =F48+F47+F46+F45+F44 -> 122.25 | G50: =G48+G47+G46+G45+G44 -> 923.6
B51: Итого за день: | D51: =D50+D42+D38 -> 60.5 | E51: =E50+E42+E38 -> 62.92 | F51: 274.41 | G51: 1899.12
B53: День 3 - завтрак
A54: №223 | B54: Запеканка из творога со сгущенкой | C54: 80/20 | D54: 12.71 | E54: 8.69 | F54: 11.64 | G54: 172.7
A55: №181 | B55: Каша манная молочная со сливочным маслом | C55: 250/8/12 | D55: 9.15 | E55: 13.31 | F55: 29.2 | G55: 265.89
B56: Хлеб пшеничный | C56: 70 | D56: 5.32 | E56: 0.56 | F56: 34.44 | G56: 165.66
A57: №382 | B57: Какао с молоком | C57: 200 | D57: 3.97 | E57: 2.1 | F57: 25.168 | G57: 145
B58: Итого за завтрак: | D58: =D57+D56+D55+D54 -> 31.15 | E58: =E57+E56+E55+E54 -> 24.66 | F58: 100.448 | G58: 749.25
B59: День 3 - 2-ой завтрак
A60: №389 | B60: Сок | C60: 200 | D60: 0 | E60: 0 | F60: 38 | G60: 76.8
B61: Кондитерское изделие | C61: 50 | D61: 1.28 | E61: 1.12 | F61: 26.4 | G61: 138.6
B62: Итого за 2-ой завтрак | D62: =D60+D61 -> 1.28 | E62: =E60+E61 -> 1.12 | F62: 64.4 | G62: 215.4
B63: День 3 - обед
A64: №20 | B64: Салат из свежих огурцов | C64: 100 | D64: 0.665 | E64: 6.08 | F64: 1.8 | G64: 65
A65: №101 | B65: Суп картофельный с крупой(рисовый) на мкб | C65: 250/15/10 | D65: 7.72 | E65: 8.5 | F65: 27.62 | G65: 208.25
A66: №306 | B66: Пюре гороховое | C66: 200 | D66: 6.82 | E66: 7.75 | F66: 37.53 | G66: 273.33
A67: №268 | B67: Котлета из говядины | C67: 100 | D67: 10.16 | E67: 13.92 | F67: 13.52 | G67: 236
B68: Хлеб ржано пшеничный | C68: 70 | D68: 3.5 | E68: 0.7 | F68: 31.5 | G68: 154
A69: №342 | B69: Компот из свежих фруктов | C69: 200 | D69: 0.17 | E69: 0.17 | F69: 19.18 | G69: 76.8
B70: Итого за обед: | D70: =D69+D68+D67+D66+D65+D64 -> 29.035 | E70: =E69+E68+E67+E66+E65+E64 -> 37.12 | F70: =+F68+F67+F66+F65+F64 -> 111.97 | G70: 1013.38
B71: Итого за день: | D71: =D70+D62+D58 -> 61.465 | E71: =E70+E62+E58 -> 62.9 | F71: 276.818 | G71: 1978.03
B73: День 4 - завтрак
A74: №401 | B74: Оладьи с повидлом | C74: 100/20 | D74: 7.87 | E74: 6.55 | F74: 32.38 | G74: 250.6
A75: №203 | B75: Макароны отварные со сливочным маслом | C75: 200 | D75: 7.6 | E75: 9.94 | F75: 45.77 | G75: 272
A76: №243 | B76: Сосиска отварная с соусом | C76: 100/30 | D76: 7.7 | E76: 10.92 | F76: 2.75 | G76: 129.6
B77: Хлеб пшеничный | C77: 70 | D77: 5.32 | E77: 0.56 | F77: 34.44 | G77: 165.66
A78: №376 | B78: Чай с сахаром | C78: 200/15 | D78: 0.021 | E78: 0.005 | F78: 14.975 | G78: 60
B79: Итого за завтрак: | D79: =D78+D77+D76+D75+D74 -> 28.511 | E79: =E78+E77+E76+E75+E74 -> 27.975 | F79: =F77+F76+F75+F74 -> 115.34 | G79: 877.86
B80: День 4 - 2-ой завтрак
A81: №389 | B81: Сок | C81: 200 | D81: 0 | E81: 0 | F81: 38 | G81: 76.8
A82: №338 | B82: Фрукт | C82: 200 | D82: 0.52 | E82: 0.34 | F82: 14.7 | G82: 104
B83: Итого за 2-ой завтрак | D83: =D81+D82 -> 0.52 | E83: =E81+E82 -> 0.34 | F83: 52.7 | G83: 180.8
B84: День 4 - обед
A85: № 23 | B85: Помидоры свежие с маслом | C85: 100 | D85: 1.12 | E85: 5.25 | F85: 5.25 | G85: 71
A86: №82 | B86: Борщ с капустой и картофелем на мкб со сметаной | C86: 250/15/10 | D86: 7.5 | E86: 7.99 | F86: 23.09 | G86: 184
A87: №244 | B87: Плов из говядины | C87: 250 | D87: 15.9 | E87: 15.4 | F87: 27.92 | G87: 307.5
B88: Хлеб ржано пшеничный | C88: 70 | D88: 3.5 | E88: 0.7 | F88: 31.5 | G88: 154
A89: №349 | B89: Компот из сухофруктов | C89: 200 | D89: 0.54 | E89: 0 | F89: 17.58 | G89: 70.53
B90: Итого за обед: | D90: =D89+D88+D87+D86+D85+D88 -> 32.06 | E90: =E89+E88+E87+E86+E85+E85 -> 34.59 | F90: =F89+F88+F87+F86+F85 -> 105.34 | G90: 787.03
B91: Итого за день: | D91: =D90+D83+D79 -> 61.091 | E91: =E90+E83+E79 -> 62.905 | F91: 273.38 | G91: 1845.69
B93: День 5 - завтрак
A94: №173 | B94: Каша геркулесовая молочная со сливочным маслом | C94: 250/8/12 | D94: 10.6 | E94: 16.61 | F94: 25.22 | G94: 278.46
A95: №209 | B95: Яйцо отварное | C95: 40 | D95: 6.6 | E95: 6.1 | F95: 0.3 | G95: 80
B96: Хлеб пшеничный | C96: 70 | D96: 5.32 | E96: 0.56 | F96: 34.44 | G96: 165.66
A97: №377 | B97: Чай с лимоном | C97: 200/15/7 | D97: 0.45 | E97: 0.05 | F97: 15.95 | G97: 62.3
A98: №338 | B98: Фрукт | C98: 200 | D98: 0.52 | E98: 0.34 | F98: 14.7 | G98: 104
B99: Итого за завтрак: | D99: =D97+D96+D95+D94+D98 -> 23.49 | E99: =E97+E96+E95+E94+E98 -> 23.66 | F99: 90.61 | G99: 690.42
B100: День 5 - 2 ой завтрак
A101: №389 | B101: Сок | C101: 200 | D101: 0 | E101: 0 | F101: 38 | G101: 76.8
B102: Кондитерское изделие | C102: 50 | D102: 1.28 | E102: 1.12 | F102: 26.4 | G102: 138.6
B103: Итого за 2-ой завтрак | D103: =D102+D101 -> 1.28 | E103: =E102+E101 -> 1.12 | F103: 64.4 | G103: 215.4
B104: День 5 - обед
A105: №49 | B105: Салат "Витаминный" | C105: 100 | D105: 1.17 | E105: 5.1 | F105: 11.09 | G105: 106
A106: №88 | B106: Щи из свежей капусты с картофелем на мкб со сметаной | C106: 250/15/10 | D106: 7.5 | E106: 8.5 | F106: 18.2 | G106: 155.7
A107: №312 | B107: Пюре картофельное | C107: 200 | D107: 4.11 | E107: 6.2 | F107: 29.37 | G107: 194.66
A108: №279 | B108: Тефтели мясные | C108: 100 | D108: 9.99 | E108: 13.4 | F108: 24.4 | G108: 204
B109: Хлеб ржано пшеничный | C109: 70 | D109: 3.5 | E109: 0.7 | F109: 31.5 | G109: 154
A110: №359 | B110: Кисель ягодный | C110: 200 | D110: 0 | E110: 0 | F110: 35.94 | G110: 118
B111: Итого за обед: | D111: =D110+D109+D108+D107+D106+D105+D108 -> 36.26 | E111: =E110+E109+E108+E107+E106+E105+E105 -> 39 | F111: =F110+F109+F107+F106+F105 -> 126.1 | G111: =G110+G109+G108+G107+G106+G105 -> 932.36
B112: Итого за день: | D112: =D111+D103+D99 -> 61.03 | E112: =E111+E103+E99 -> 63.78 | F112: 281.11 | G112: 1838.18
B114: День 6 - завтрак
A115: №15 | B115: Сыр | C115: 30 | D115: 7.8 | E115: 7.94 | F115: 1.05 | G115: 109.5
A116: №321, 312 | B116: Гарнир сложный | C116: 200 | D116: 6.67 | E116: 10.4 | F116: 31.23 | G116: 216.33
A117: №294 | B117: Котлета куриная | C117: 100 | D117: 10.5 | E117: 7.11 | F117: 9.78 | G117: 202
B118: Хлеб пшеничный | C118: 70 | D118: 5.32 | E118: 0.56 | F118: 34.44 | G118: 165.66
A119: №382 | B119: Какао с молоком | C119: 200 | D119: 3.97 | E119: 2.1 | F119: 25.168 | G119: 145
B120: Итого за завтрак: | D120: =D119+D118+D117+D116+D115 -> 34.26 | E120: =E119+E118+E117+E116+E115 -> 28.11 | F120: 101.668 | G120: 838.49
B121: День 6 - 2-ой завтрак
A122: №338 | B122: Фрукт | C122: 200 | D122: 0.52 | E122: 0.34 | F122: 14.7 | G122: 104
A123: №389 | B123: Сок | C123: 200 | D123: 0 | E123: 0 | F123: 38 | G123: 76.8
B124: Итого за 2-ой завтрак | D124: =D123+D122 -> 0.52 | E124: =E123+E122 -> 0.34 | F124: 52.7 | G124: 180.8
B125: День 6 - обед
A126: №20 | B126: Салат из свежих огурцов | C126: 100 | D126: 0.665 | E126: 6.08 | F126: 1.8 | G126: 65
A127: №108 | B127: Суп картофельный с клецками на мкб со сметаной | C127: 250/15/10 | D127: 6.59 | E127: 7.62 | F127: 24.45 | G127: 232
A128: №302 | B128: Каша гречневая рассыпчатая | C128: 200 | D128: 9.14 | E128: 10.1 | F128: 44 | G128: 226.66
A129: №234 | B129: Биточки рыбные из минтая с соусом | C129: 100/30 | D129: 9.27 | E129: 8.29 | F129: 19.88 | G129: 198
B130: Хлеб ржано пшеничный | C130: 70 | D130: 3.5 | E130: 0.7 | F130: 31.5 | G130: 154
A131: №342 | B131: Компот из свежих фруктов | C131: 200 | D131: 0.17 | E131: 0.17 | F131: 19.18 | G131: 76.8
B132: Итого за обед: | D132: =D131+D130+D129+D128+D127+D126 -> 29.335 | E132: =E131+E130+E129+E128+E127+E126 -> 32.96 | F132: =F130+F129+F128+F127+F126 -> 121.63 | G132: 952.46
B133: Итого за день: | D133: =D132+D124+D120 -> 64.115 | E133: =E132+E124+E120 -> 61.41 | F133: 275.998 | G133: 1971.75
B135: День 7- завтрак
A136: №219 | B136: Сырники из творога | C136: 100/20 | D136: 15.88 | E136: 10.86 | F136: 17.43 | G136: 247
A137: №173 | B137: Каша ячневая молочная со сливочным маслом | C137: 250/8/12 | D137: 10.73 | E137: 13.83 | F137: 38.12 | G137: 310.34
A138: №376 | B138: Чай с сахаром | C138: 200/15 | D138: 0.021 | E138: 0.005 | F138: 14.975 | G138: 60
B139: Хлеб пшеничный | C139: 70 | D139: 5.32 | E139: 0.56 | F139: 34.44 | G139: 165.66
A140: №338 | B140: Фрукт | C140: 200 | D140: 0.52 | E140: 0.34 | F140: 14.7 | G140: 104
B141: Итого за завтрак: | D141: =D139+D138+D137+D136+D140 -> 32.471 | E141: =E139+E138+E137+E136+E140 -> 25.595 | F141: 119.665 | G141: 887
B142: День 7 - 2-ой завтрак
A143: №389 | B143: Сок | C143: 200 | D143: 0 | E143: 0 | F143: 38 | G143: 76.8
B144: Кондитерское изделие | C144: 50 | D144: 1.28 | E144: 1.12 | F144: 26.4 | G144: 138.6
B145: Итого за 2-ой завтрак | D145: =D143+D144 -> 1.28 | E145: =E143+E144 -> 1.12 | F145: 64.4 | G145: 215.4
B146: День 7 - обед
A147: № 23 | B147: Помидоры свежие с маслом | C147: 100 | D147: 1.12 | E147: 5.25 | F147: 5.25 | G147: 71
A148: №102 | B148: Суп картофельный с бобовыми (гороховый) на мкб | C148: 250/15 | D148: 6.49 | E148: 6.24 | F148: 15.87 | G148: 153.6
A149: №287 | B149: Голубцы ленивые | C149: 250 | D149: 19.7 | E149: 16.71 | F149: 19.8 | G149: 308.56
B150: Хлеб ржано пшеничный | C150: 70 | D150: 3.5 | E150: 0.7 | F150: 31.5 | G150: 154
A151: №349 | B151: Компот из сухофруктов | C151: 200 | D151: 0.54 | E151: 0 | F151: 17.58 | G151: 70.53
B152: Итого за обед: | D152: =D151+D150+D149+D148+D147 -> 31.35 | E152: =E151+E150+E149+E148+E147+E147 -> 34.15 | F152: =F151+F150+F149+F148+F147+F147 -> 95.25 | G152: 828.69
B153: Итого за день: | D153: =D152+D145+D141 -> 65.101 | E153: =E152+E145+E141 -> 60.865 | F153: 279.315 | G153: 1931.09
B155: День 8 - завтрак
A156: №20 | B156: Салат из свежих огурцов | C156: 100 | D156: 0.665 | E156: 6.08 | F156: 1.8 | G156: 65
A157: №203 | B157: Макароны отварные со сливочным маслом | C157: 200 | D157: 7.6 | E157: 9.94 | F157: 45.77 | G157: 272
A158: №243 | B158: Сосиска отварная с соусом | C158: 100/30 | D158: 7.7 | E158: 10.92 | F158: 2.75 | G158: 129.6
B159: Хлеб пшеничный | C159: 70 | D159: 5.32 | E159: 0.56 | F159: 34.44 | G159: 165.66
A160: №377 | B160: Чай с лимоном | C160: 200/15/7 | D160: 0.45 | E160: 0.05 | F160: 15.95 | G160: 62.3
B161: Итого за завтрак: | D161: =D160+D159+D158+D157+D156 -> 21.735 | E161: =E160+E159+E158+E157+E156 -> 27.55 | F161: 100.71 | G161: 694.56
B162: День 8 - 2ой завтрак
A163: №338 | B163: Фрукт | C163: 200 | D163: 0.52 | E163: 0.34 | F163: 14.7 | G163: 104
A164: №389 | B164: Сок | C164: 200 | D164: 0 | E164: 0 | F164: 38 | G164: 76.8
B165: Итого за 2-ой завтрак | D165: =D163+D164 -> 0.52 | E165: =E163+E164 -> 0.34 | F165: =F163+F164 -> 52.7 | G165: =G163+G164 -> 180.8
B166: День 8 - обед
A167: №45 | B167: Салат из белокочанной капусты | C167: 100 | D167: 1.55 | E167: 5.75 | F167: 9.4 | G167: 111
A168: №96 | B168: Рассольник Ленинградский на мкб со сметаной | C168: 250/15/10 | D168: 7.02 | E168: 8.2 | F168: 18.95 | G168: 191.3
A169: №142 | B169: Картофель тушеный с овощами | C169: 200 | D169: 4.53 | E169: 6.12 | F169: 26.18 | G169: 183.42
A170: №268 | B170: Котлета из говядины | C170: 100 | D170: 10.16 | E170: 13.92 | F170: 13.52 | G170: 236
B171: Хлеб ржано пшеничный | C171: 70 | D171: 3.5 | E171: 0.7 | F171: 31.5 | G171: 154
A172: №359 | B172: Кисель ягодный | C172: 200 | D172: 0 | E172: 0 | F172: 35.94 | G172: 118
B173: Итого за обед: | D173: =D172+D171+D170+D169+D168+D167+D170+D167 -> 38.47 | E173: =E172+E171+E170+E169+E168+E167 -> 34.69 | F173: =F172+F171+F170+F169+F168 -> 126.09 | G173: 993.72
B174: Итого за день: | D174: =D173+D165+D161 -> 60.725 | E174: =E173+E165+E161 -> 62.58 | F174: 279.5 | G174: 1869.08
B176: День 9 - завтрак
A177: №209 | B177: Яйцо отварное | C177: 40 | D177: 6.6 | E177: 6.1 | F177: 0.3 | G177: 80
A178: №199 | B178: Каша молочная пшенная со сливочным маслом | C178: 250/8/12 | D178: 11.05 | E178: 14.65 | F178: 34.96 | G178: 298.15
B179: Хлеб пшеничный | C179: 70 | D179: 5.32 | E179: 0.56 | F179: 34.44 | G179: 165.66
A180: №382 | B180: Какао с молоком | C180: 200 | D180: 3.97 | E180: 2.1 | F180: 25.168 | G180: 145
B181: Итого за завтрак: | D181: =D180+D179+D178+D177 -> 26.94 | E181: =E180+E179+E178+E177 -> 23.41 | F181: 94.868 | G181: 688.81
B182: День 9 - 2-ой завтрак
B183: Кондитерское изделие | C183: 50 | D183: 1.28 | E183: 1.12 | F183: 26.4 | G183: 138.6
A184: №389 | B184: Сок | C184: 200 | D184: 0 | E184: 0 | F184: 38 | G184: 76.8
B185: Итого за 2-ой завтрак | D185: =D183+D184 -> 1.28 | E185: =E183+E184 -> 1.12 | F185: 64.4 | G185: 215.4
B186: День 9 - обед
A187: №49 | B187: Салат "Витаминный" | C187: 100 | D187: 1.17 | E187: 5.1 | F187: 11.09 | G187: 106
A188: №101 | B188: Суп картофельный с крупой (гречневый) на мкб | C188: 250/15 | D188: 7.38 | E188: 7.5 | F188: 23.5 | G188: 188
A189: №263 | B189: Рагу овощное с говядиной | C189: 250 | D189: 18.92 | E189: 18.62 | F189: 42.87 | G189: 430
B190: Хлеб ржано пшеничный | C190: 70 | D190: 3.5 | E190: 0.7 | F190: 31.5 | G190: 154
A191: №342 | B191: Компот из свежих фруктов | C191: 200 | D191: 0.17 | E191: 0.17 | F191: 19.18 | G191: 76.8
B192: Итого за обед: | D192: =D191+D190+D189+D188+D187+D187 -> 32.31 | E192: =E191+E190+E189+E188+E187+E187 -> 37.19 | F192: 108.14 | G192: 1060.8
B193: Итого за день: | D193: =D192+D185+D181 -> 60.53 | E193: =E192+E185+E181 -> 61.72 | F193: 267.408 | G193: 1965.01
B195: День 10 - завтрак
A196: №15 | B196: Сыр | C196: 30 | D196: 7.8 | E196: 7.94 | F196: 1.05 | G196: 109.5
A197: №312 | B197: Пюре картофельное | C197: 200 | D197: 4.11 | E197: 6.2 | F197: 29.37 | G197: 194.66
A198: №301 | B198: Кнели куриные | C198: 100 | D198: 15.14 | E198: 10.6 | F198: 6.95 | G198: 228
A199: №376 | B199: Чай с сахаром | C199: 200/15 | D199: 0.021 | E199: 0.005 | F199: 14.975 | G199: 60
B200: Хлеб пшеничный | C200: 70 | D200: 5.32 | E200: 0.56 | F200: 34.44 | G200: 165.66
B201: Итого за завтрак: | D201: =D200+D199+D198+D197+D196 -> 32.391 | E201: =E200+E199+E198+E197+E196 -> 25.305 | F201: 86.785 | G201: 757.82
B202: День 10 - 2ой завтрак
A203: №389 | B203: Сок | C203: 200 | D203: 0 | E203: 0 | F203: 38 | G203: 76.8
B204: Кондитерское изделие | C204: 50 | D204: 1.28 | E204: 1.12 | F204: 26.4 | G204: 138.6
B205: Итого за 2-ой завтрак | D205: =D204+D203 -> 1.28 | E205: =E204+E203 -> 1.12 | F205: 64.4 | G205: 215.4
B206: День 10 - обед
A207: № 23 | B207: Помидоры свежие с маслом | C207: 100 | D207: 1.12 | E207: 5.25 | F207: 5.25 | G207: 71
A208: №82 | B208: Борщ с капустой и картофелем на мкб со сметаной | C208: 250/15/10 | D208: 7.5 | E208: 7.99 | F208: 23.09 | G208: 184
A209: №304 | B209: Рис отварной | C209: 200 | D209: 4.93 | E209: 9.76 | F209: 49.64 | G209: 293.3
A210: №229 | B210: Рыба припущенная с овощами в сметанном соусе | C210: 100/50 | D210: 9.4 | E210: 7.04 | F210: 12.76 | G210: 174
B211: Хлеб ржано пшеничный | C211: 70 | D211: 3.5 | E211: 0.7 | F211: 31.5 | G211: 154
A212: №349 | B212: Компот из сухофруктов | C212: 200 | D212: 0.54 | E212: 0 | F212: 17.58 | G212: 70.53
... 81 more rows
